fUST/lending_fUST_20250606
["ID","MTS","AMOUNT","RATE_DAILY","PERIOD"]
[364573334,1749144647967,-440.0,0.0002,2]
[364573335,1749144647977,-2437.89,0.0002,2]
[364573336,1749144647986,-208.59326253,0.0002,2]
[364573337,1749144647995,-440.0,0.0002,2]
[364573338,1749144648004,-1823.92,0.0002,2]
[364573340,1749144648014,-557.57300131,0.0002,2]
[364573342,1749144648024,-440.0,0.0002,2]
[364573344,1749144648034,-440.0,0.0002,2]
[364573346,1749144648042,-440.0,0.00020273,2]
[364573348,1749144648052,-360.91254926,0.00020273,2]
[364573350,1749144648061,-430.0,0.00020273,2]
[364573352,1749144648070,-440.0,0.00020273,2]
[364573354,1749144648079,-2437.89,0.00020273,2]
[364573356,1749144648088,-440.0,0.00020273,2]
[364573358,1749144648097,-1823.92,0.00020273,2]
[364573360,1749144648106,-440.0,0.00020273,2]
[364573362,1749144648115,-224.36187999,0.00020273,2]
[364573364,1749144648124,-525.22,0.00020354,2]
[364573366,1749144648133,-500.0,0.00020488,2]
[364573368,1749144648142,-430.0,0.00020547,2]
[364573370,1749144648151,-500.0,0.00020547,2]
[364573372,1749144648160,-283.84241964,0.00020547,2]
[364573374,1749144648170,-440.0,0.00020547,2]
[364573375,1749144648180,-2437.89,0.00020547,2]
[364573376,1749144648189,-440.0,0.00020547,2]
[364573377,1749144648198,-1823.92,0.00020547,2]
[364573378,1749144648208,-440.0,0.00020547,2]
[364573379,1749144648218,-1578.76,0.000206,2]
[364573380,1749144648227,-208.59326253,0.000207,3]
[364573381,1749144648237,-440.0,0.00020821,2]
[364573382,1749144648246,-2437.89,0.00020821,2]
[364573383,1749144648256,-440.0,0.00020821,2]
[364573384,1749144648266,-1823.92,0.00020821,2]
[364573385,1749144648277,-440.0,0.00020821,2]
[364573386,1749144648287,-17837.46,0.000209,2]
[364573387,1749144648297,-164.117071,0.00020951,2]
[364573388,1749144648307,-53682.51366325,0.00021,2]
[364573389,1749144648317,-440.0,0.00021095,2]
[364573390,1749144648327,-2437.89,0.00021095,2]
[364573391,1749144648337,-380.81992226,0.00021095,2]
[364573392,1749144648348,-1823.92,0.00021095,2]
[364573393,1749144648357,-440.0,0.00021095,2]
[364573394,1749144648367,-440.0,0.00021369,2]
[364573395,1749144648376,-2437.89,0.00021369,2]
[364573396,1749144648386,-1823.92,0.00021369,2]
[364573397,1749144648396,-440.0,0.00021369,2]
[364573398,1749144648406,-208.59326253,0.000214,5]
[364573399,1749144648415,-207.4,0.00021608,2]
[364573400,1749144648424,-440.0,0.00021643,2]
[364573401,1749144648434,-2437.89,0.00021643,2]
[364573402,1749144648443,-1823.92,0.00021643,2]
[364573403,1749144648452,-440.0,0.00021643,2]
[364573404,1749144648461,-767.69,0.000219,2]
[364573405,1749144648471,-440.0,0.00021917,2]
[364573406,1749144648480,-2437.89,0.00021917,2]
[364573407,1749144648490,-1823.92,0.00021917,2]
[364573408,1749144648499,-556.70823118,0.00021917,2]
[364573409,1749144648509,-5318.41188946,0.00022,2]
[364573410,1749144648519,-700.29,0.00022024,2]
[364573411,1749144648529,-208.59326253,0.000221,6]
[364573412,1749144648539,-240.09958168,0.00022191,2]
[364573413,1749144648549,-2437.89,0.00022191,2]
[364573414,1749144648559,-1823.92,0.00022191,2]
[364573415,1749144648570,-1866.92,0.000222,2]
[364573416,1749144648579,-2437.89,0.00022465,2]
[364573417,1749144648589,-1823.92,0.00022465,2]
[364573418,1749144648597,-500.0,0.00022589,2]
[364573419,1749144648606,-628.27052187,0.00022589,2]
[364573420,1749144648615,-278406.0,0.0002259,2]
[364573421,1749144648626,-500.0,0.0002268,2]
[364573422,1749144648636,-2437.89,0.00022739,2]
[364573423,1749144648645,-1823.92,0.00022739,2]
[364573424,1749144648654,-208.59326253,0.000228,8]
[364573425,1749144648664,-1578.76,0.000229,7]
[364573426,1749144648673,-17837.46,0.000229,2]
[364573427,1749144648682,-595.87419497,0.000229,2]
[364573428,1749144648691,-215.0738,0.00022977,2]
[364573429,1749144648700,-174.0,0.00023,7]
[364573430,1749144648711,-1957.0576989,0.00023,2]
[364573431,1749144648721,-294.89,0.00023,7]
[364573432,1749144648730,-2437.89,0.00023013,2]
[364573433,1749144648739,-1823.92,0.00023013,2]
[364573434,1749144648748,-709.0,0.00023088,2]
[364573435,1749144648757,-423.052,0.00023088,2]
[364573436,1749144648766,-405.0,0.00023088,2]
[364573437,1749144648776,-430.83016117,0.00023225,2]
[364573438,1749144648785,-2437.89,0.00023287,2]
[364573439,1749144648794,-1823.92,0.00023287,2]
[364573440,1749144648803,-208.59326253,0.000235,9]
[364573441,1749144648812,-875.36,0.00023561,2]
[364573442,1749144648821,-2437.89,0.00023561,2]
[364573443,1749144648830,-1823.92,0.00023561,2]
[364573444,1749144648839,-4229.53369741,0.00023613,7]
[364573445,1749144648848,-2200.0,0.0002362,2]
[364573446,1749144648857,-575.373323,0.0002379,3]
[364573447,1749144648865,-117794.66690462,0.000238,2]
[364573448,1749144648874,-13929.12476639,0.000238,3]
[364573449,1749144648883,-160.0,0.000238,3]
[364573450,1749144648892,-191.3393546,0.000238,3]
[364573451,1749144648901,-2437.89,0.00023835,2]
[364573452,1749144648910,-1823.92,0.00023835,2]
[364573453,1749144648918,-200.0,0.00024081,7]
[364573454,1749144648927,-200.0,0.00024092,7]
[364573455,1749144648936,-500.0,0.00024108,2]
[364573456,1749144648945,-2437.89,0.00024109,2]
[364573457,1749144648954,-1823.92,0.00024109,2]
[364573458,1749144648964,-200.0,0.00024112,2]
[364573459,1749144648973,-200.0,0.0002412,2]
[364573460,1749144648982,-200.0,0.00024135,2]
[364573461,1749144648991,-200.0,0.00024156,2]
[364573462,1749144649000,-200.0,0.00024179,2]
[364573463,1749144649009,-200.0,0.00024185,2]
[364573464,1749144649018,-200.0,0.00024187,7]
[364573465,1749144649027,-2000.0,0.000242,2]
[364573466,1749144649037,-2000.0,0.000242,2]
[364573467,1749144649046,-2000.0,0.000242,2]
[364573468,1749144649055,-150.0,0.000242,5]
[364573469,1749144649065,-187.328088,0.000242,2]
[364573470,1749144649074,-208.59326253,0.000242,10]
[364573471,1749144649084,-618.27747405,0.00024233,2]
[364573472,1749144649093,-200.0,0.00024234,2]
[364573473,1749144649103,-200.0,0.00024243,2]
[364573474,1749144649112,-6009.91948102,0.00024245,2]
[364573475,1749144649122,-151.654972,0.00024256,7]
[364573476,1749144649131,-151.0,0.00024256,7]
[364573477,1749144649140,-151.0,0.00024256,7]
[364573478,1749144649149,-151.0,0.00024256,7]
[364573479,1749144649158,-151.0,0.00024256,7]
[364573480,1749144649168,-151.0,0.00024256,7]
[364573481,1749144649177,-151.0,0.00024256,7]
[364573482,1749144649186,-151.0,0.00024256,7]
[364573483,1749144649195,-151.0,0.00024256,7]
[364573484,1749144649204,-151.0,0.00024256,7]
[364573485,1749144649213,-151.0,0.00024256,7]
[364573486,1749144649223,-151.0,0.00024256,7]
[364573487,1749144649232,-151.0,0.00024256,7]
[364573488,1749144649241,-12675.11581177,0.00024256,30]
[364573489,1749144649251,-315.01552021,0.00024256,30]
[364573490,1749144649260,-151.0,0.00024259,7]
[364573491,1749144649270,-151.0,0.00024259,7]
[364573492,1749144649280,-151.0,0.00024259,7]
[364573493,1749144649289,-151.0,0.00024259,7]
[364573494,1749144649298,-151.0,0.00024259,7]
[364573495,1749144649308,-151.0,0.00024259,7]
[364573496,1749144649316,-151.0,0.00024259,7]
[364573497,1749144649326,-151.0,0.00024259,7]
[364573498,1749144649336,-151.0,0.00024259,7]
[364573499,1749144649345,-151.0,0.00024259,7]
[364573500,1749144649355,-151.0,0.00024259,7]
[364573501,1749144649364,-151.0,0.00024259,7]
[364573502,1749144649374,-151.0,0.00024259,2]
[364573503,1749144649383,-151.0,0.00024259,7]
[364573504,1749144649392,-151.0,0.00024259,2]
[364573511,1749144649492,-151.0,0.00024259,7]
[364573513,1749144649502,-151.0,0.00024259,2]
[364573515,1749144649512,-151.0,0.00024259,7]
[364573517,1749144649522,-151.0,0.00024259,2]
[364573519,1749144649532,-269.82869,0.00024259,7]
[364573520,1749144649542,-151.0,0.00024259,2]
[364573522,1749144649551,-151.0,0.00024259,2]
[364573524,1749144649561,-151.0,0.00024259,2]
[364573526,1749144649570,-247.039308,0.00024259,2]
[364573528,1749144649580,-151.0,0.00024259,7]
[364573531,1749144649589,-151.0,0.00024259,7]
[364573533,1749144649599,-151.0,0.00024259,7]
[364573534,1749144649608,-151.0,0.00024259,7]
[364573536,1749144649618,-151.0,0.00024259,7]
[364573538,1749144649630,-151.0,0.00024259,7]
[364573540,1749144649639,-178.801604,0.00024259,7]
[364573543,1749144649649,-151.0,0.00024259,7]
[364573544,1749144649658,-193.165024,0.00024259,7]
[364573546,1749144649668,-151.0,0.00024259,7]
[364573548,1749144649678,-151.0,0.00024259,7]
[364573550,1749144649688,-151.0,0.00024259,7]
[364573552,1749144649697,-151.0,0.00024259,7]
[364573554,1749144649712,-151.0,0.00024259,7]
[364573557,1749144649722,-151.0,0.00024259,7]
[364573559,1749144649732,-151.0,0.00024259,7]
[364573560,1749144649742,-151.0,0.00024259,7]
[364573562,1749144649751,-151.0,0.00024259,7]
[364573564,1749144649760,-151.0,0.00024259,7]
[364573566,1749144649769,-151.0,0.00024259,7]
[364573568,1749144649778,-226.368357,0.00024259,7]
[364573570,1749144649787,-160.0,0.00024259,7]
[364573572,1749144649797,-151.0,0.00024259,7]
[364573574,1749144649806,-151.0,0.00024259,7]
[364573575,1749144649815,-151.0,0.00024259,7]
[364573576,1749144649824,-167.173868,0.00024259,7]
[364573577,1749144649833,-37158.71462838,0.00024259,2]
[364573578,1749144649842,-8341.56838819,0.00024259,3]
[364573579,1749144649851,-160.0,0.00024259,3]
[364573580,1749144649860,-622440.93884971,0.00024259,20]
[364573581,1749144650072,-440.0,0.00018356,2]
[364573582,1749144650082,-440.0,0.0001863,2]
[364573583,1749144650091,-367.62906177,0.00018904,2]
[364573584,1749144650138,713.0,0.00025,120]
[364573585,1749144650165,-16000.0,0.00018345,2]
[364573586,1749144650174,-72.37093823,0.00018904,2]
[364573587,1749144650183,-440.0,0.00019178,2]
[364573588,1749144650193,-356.64524604,0.00019452,2]
[364573589,1749144650203,-7485.20459578,0.00024259,20]
[364573590,1749144650215,-213943.24674529,0.00024259,20]
[364573591,1749144650263,-440.0,0.00018356,2]
[364573592,1749144650273,-440.0,0.00018356,2]
[364573593,1749144650282,-440.0,0.0001863,2]
[364573594,1749144650291,-440.0,0.00018904,2]
[364573595,1749144650301,-161.0182729,0.00024247,2]
[364573596,1749144650310,-80083.25219887,0.00024259,20]
[364573597,1749144650321,-2046.24568624,0.00024259,20]
[364573603,1749145145485,159.873405,0.00013699,2]
[364573605,1749145654172,-668.63,0.0001711,2]
[364573606,1749145654193,-564.53546942,0.00017822,2]
[364573607,1749145654214,-500.0,0.00018196,2]
[364573608,1749145654235,-300.0,0.00018344,2]
[364573609,1749145654255,-300.0,0.00018344,2]
[364573610,1749145654276,-250.85029744,0.00018345,2]
[364573611,1749145654297,-156.587,0.00018345,2]
[364573612,1749145654318,-16000.0,0.00018345,2]
[364573613,1749145654339,-160.0,0.00018354,2]
[364573614,1749145654360,-300.0,0.00018355,2]
[364573615,1749145654383,-300.0,0.00018355,2]
[364573616,1749145654404,-300.0,0.00018355,2]
[364573617,1749145654426,-300.0,0.00018355,2]
[364573618,1749145654447,-1200.0,0.00018355,2]
[364573619,1749145654471,-50000.0,0.00018355,2]
[364573620,1749145654493,-440.0,0.00018356,2]
[364573621,1749145654514,-206.037986,0.00018356,2]
[364573622,1749145654537,-440.0,0.00018356,2]
[364573623,1749145654560,-440.0,0.00018356,2]
[364573624,1749145654582,-430.0,0.00018356,2]
[364573625,1749145654604,-440.0,0.00018356,2]
[364573626,1749145654627,-440.0,0.00018356,2]
[364573627,1749145654857,-154.58255204,0.00018356,2]
[364573628,1749145654880,-440.0,0.00018356,2]
[364573629,1749145654902,-440.0,0.00018356,2]
[364573630,1749145654925,-440.0,0.00018356,2]
[364573631,1749145654947,-440.0,0.00018356,2]
[364573632,1749145654969,-440.0,0.00018356,2]
[364573633,1749145654993,-440.0,0.00018356,2]
[364573634,1749145655025,-440.0,0.00018356,2]
[364573635,1749145655050,-440.0,0.00018356,2]
[364573636,1749145655073,-440.0,0.00018356,2]
[364573637,1749145655094,-440.0,0.00018356,2]
[364573638,1749145655115,-400.0,0.00018356,2]
[364573639,1749145655137,-440.0,0.00018356,2]
[364573640,1749145655158,-440.0,0.00018356,2]
[364573641,1749145655180,-440.0,0.00018356,2]
[364573642,1749145655202,-440.0,0.00018356,2]
[364573643,1749145655223,-440.0,0.00018356,2]
[364573644,1749145655245,-440.0,0.00018356,2]
[364573645,1749145655266,-440.0,0.00018356,2]
[364573646,1749145655288,-440.0,0.00018356,2]
[364573647,1749145655310,-541.35,0.00018356,2]
[364573648,1749145655330,-440.0,0.00018356,2]
[364573649,1749145655352,-440.0,0.00018356,2]
[364573650,1749145655375,-430.0,0.00018356,2]
[364573651,1749145655397,-430.84065571,0.00018356,2]
[364573652,1749145655418,-440.0,0.00018356,2]
[364573653,1749145655438,-440.0,0.00018356,2]
[364573654,1749145655460,-440.0,0.00018356,2]
[364573655,1749145655481,-440.0,0.00018356,2]
[364573656,1749145655504,-440.0,0.00018356,2]
[364573657,1749145655525,-440.0,0.00018356,2]
[364573658,1749145655546,-440.0,0.00018356,2]
[364573659,1749145655567,-440.0,0.00018356,2]
[364573660,1749145655588,-440.0,0.00018356,2]
[364573661,1749145655609,-411.47738476,0.00018356,2]
[364573662,1749145655634,-440.0,0.00018356,2]
[364573663,1749145655654,-440.0,0.00018356,2]
[364573664,1749145655675,-440.0,0.00018356,2]
[364573665,1749145655698,-155.26726233,0.00018356,2]
[364573666,1749145655721,-760.2,0.00018356,2]
[364573667,1749145655742,-440.0,0.00018356,2]
[364573668,1749145655765,-440.0,0.00018356,2]
[364573669,1749145655786,-440.0,0.00018356,2]
[364573670,1749145655806,-440.0,0.00018356,2]
[364573671,1749145655828,-999.61,0.00018356,2]
[364573672,1749145655849,-440.0,0.00018356,2]
[364573673,1749145655871,-440.0,0.00018356,2]
[364573674,1749145655893,-430.0,0.00018356,2]
[364573675,1749145655917,-440.0,0.00018356,2]
[364573676,1749145655939,-440.0,0.00018356,2]
[364573677,1749145656111,-440.0,0.00018356,2]
[364573678,1749145656132,-390.0,0.00018356,2]
[364573679,1749145656155,-440.0,0.00018356,2]
[364573680,1749145656175,-440.0,0.00018356,2]
[364573681,1749145656200,-440.0,0.00018356,2]
[364573682,1749145656221,-440.0,0.00018356,2]
[364573683,1749145656241,-440.0,0.00018356,2]
[364573684,1749145656262,-440.0,0.00018356,2]
[364573685,1749145656284,-440.0,0.00018356,2]
[364573686,1749145656307,-440.0,0.00018356,2]
[364573687,1749145656327,-440.0,0.00018356,2]
[364573688,1749145656349,-440.0,0.00018356,2]
[364573689,1749145656371,-440.0,0.00018356,2]
[364573690,1749145656393,-440.0,0.00018356,2]
[364573691,1749145656415,-440.0,0.00018356,2]
[364573692,1749145656436,-440.0,0.00018356,2]
[364573693,1749145656456,-440.0,0.00018356,2]
[364573694,1749145656476,-440.0,0.00018356,2]
[364573695,1749145656498,-500.0,0.00018356,2]
[364573696,1749145656519,-500.0,0.00018356,2]
[364573697,1749145656541,-500.0,0.00018356,2]
[364573698,1749145656564,-440.0,0.00018356,2]
[364573699,1749145656584,-440.0,0.00018356,2]
[364573700,1749145656606,-440.0,0.00018356,2]
[364573701,1749145656626,-440.0,0.00018356,2]
[364573702,1749145656648,-440.0,0.00018356,2]
[364573703,1749145656668,-393.75,0.0001863,2]
[364573704,1749145656689,-440.0,0.0001863,2]
[364573705,1749145656710,-440.0,0.0001863,2]
[364573706,1749145656731,-584.6,0.0001863,2]
[364573707,1749145656752,-450.8,0.0001863,2]
[364573708,1749145656772,-440.0,0.0001863,2]
[364573709,1749145656794,-440.0,0.0001863,2]
[364573710,1749145656814,-440.0,0.0001863,2]
[364573711,1749145656837,-440.0,0.0001863,2]
[364573712,1749145656857,-440.0,0.0001863,2]
[364573713,1749145656880,-760.2,0.0001863,2]
[364573714,1749145656903,-999.61,0.0001863,2]
[364573715,1749145656925,-213.37,0.0001863,2]
[364573716,1749145656948,-440.0,0.0001863,2]
[364573717,1749145656974,-440.0,0.0001863,2]
[364573718,1749145656994,-157.86789901,0.0001863,2]
[364573719,1749145657017,-440.0,0.0001863,2]
[364573720,1749145657038,-543.25531892,0.0001863,2]
[364573721,1749145657063,-440.0,0.0001863,2]
[364573722,1749145657085,-440.0,0.0001863,2]
[364573723,1749145657108,-440.0,0.0001863,2]
[364573724,1749145657131,-440.0,0.0001863,2]
[364573725,1749145657151,-1337.26,0.00018665,2]
[364573726,1749145657172,-153.38429643,0.00018715,2]
[364573727,1749145657196,-500.0,0.00018715,2]
[364573728,1749145657218,-503.63052869,0.00018715,2]
[364573729,1749145657237,-344.82219057,0.00018715,2]
[364573730,1749145657257,-500.0,0.00018715,2]
[364573731,1749145657276,-500.0,0.00018715,2]
[364573732,1749145657298,-500.0,0.00018772,2]
[364573733,1749145657317,-500.0,0.00018772,2]
[364573734,1749145657337,-500.0,0.00018787,2]
[364573735,1749145657357,-500.0,0.00018792,2]
[364573736,1749145657377,-595.87419497,0.000189,2]
[364573737,1749145657401,-500.0,0.00018902,2]
[364573738,1749145657423,-440.0,0.00018903,2]
[364573739,1749145657445,-397.52,0.00018903,2]
[364573740,1749145657466,-440.0,0.00018903,2]
[364573741,1749145657487,-440.0,0.00018903,2]
[364573742,1749145657507,-440.0,0.00018903,2]
[364573743,1749145657528,-585.63,0.00018903,2]
[364573744,1749145657548,-440.0,0.00018903,2]
[364573745,1749145657570,-440.0,0.00018903,2]
[364573746,1749145657589,-440.0,0.00018904,2]
[364573747,1749145657610,-233.58401965,0.00018904,2]
[364573748,1749145657630,-440.0,0.00018904,2]
[364573749,1749145657653,-440.0,0.00018904,2]
[364573750,1749145657675,-172.04,0.00018904,2]
[364573751,1749145657698,-760.2,0.00018904,2]
[364573752,1749145657722,-999.61,0.00018904,2]
[364573753,1749145657744,-440.0,0.00018904,2]
[364573754,1749145657767,-440.0,0.00018904,2]
[364573755,1749145657788,-491.37,0.00018904,2]
[364573756,1749145657811,-440.0,0.00018904,2]
[364573757,1749145657834,-440.0,0.00018904,2]
[364573758,1749145657857,-440.0,0.00018904,2]
[364573759,1749145657880,-440.0,0.00018904,2]
[364573760,1749145657902,-500.0,0.0001892,2]
[364573761,1749145657923,-500.0,0.0001895,2]
[364573762,1749145657944,-500.0,0.00019096,2]
[364573763,1749145657964,-500.0,0.00019123,2]
[364573764,1749145657990,-500.0,0.00019151,2]
[364573765,1749145658010,-500.0,0.00019154,2]
[364573766,1749145658033,-440.0,0.00019177,2]
[364573767,1749145658056,-440.0,0.00019177,2]
[364573768,1749145658078,-328.09,0.00019177,2]
[364573769,1749145658101,-440.0,0.00019177,2]
[364573770,1749145658123,-440.0,0.00019178,2]
[364573771,1749145658146,-440.0,0.00019178,2]
[364573772,1749145658169,-760.2,0.00019178,2]
[364573773,1749145658192,-999.61,0.00019178,2]
[364573774,1749145658214,-440.0,0.00019178,2]
[364573775,1749145658237,-440.0,0.00019178,2]
[364573776,1749145658260,-440.0,0.00019178,2]
[364573777,1749145658283,-440.0,0.00019178,2]
[364573778,1749145658307,-440.0,0.00019178,2]
[364573779,1749145658329,-225.2,0.00019178,2]
[364573780,1749145658349,-189.042416,0.00019178,2]
[364573781,1749145658370,-500.0,0.00019335,2]
[364573782,1749145658392,-440.0,0.00019451,2]
[364573783,1749145658416,-358.81053539,0.00019451,2]
[364573784,1749145826933,-670.15,0.0001672,2]
[364573785,1749145826954,-1340.29,0.0001824,2]
[364573786,1749145826975,-1200.0,0.00018355,2]
[364573787,1749145826996,-2369.56,0.00018356,2]
[364573824,1749145832746,-44808.06107046,0.00018356,2]
[364573826,1749145832758,-2822.37892954,0.00018356,2]
[364573828,1749145832767,-457.39,0.00018356,2]
[364573830,1749145832776,-488.25,0.00018356,2]
[364573832,1749145832788,-440.0,0.00018356,2]
[364573834,1749145832797,-175.09951362,0.00018356,2]
[364573836,1749145832808,-440.0,0.00018356,2]
[364573838,1749145832817,-401.88155684,0.00018356,2]
[364573860,1749145833023,-28.11844316,0.00018356,2]
[364573862,1749145833039,-440.0,0.00018356,2]
[364573864,1749145833048,-440.0,0.00018356,2]
[364573866,1749145833059,-440.0,0.00018356,2]
[364573868,1749145833070,-523.3,0.00018356,2]
[364573870,1749145833080,-440.0,0.00018356,2]
[364573872,1749145833092,-440.0,0.00018356,2]
[364573874,1749145833102,-440.0,0.00018356,2]
[364573876,1749145833113,-440.0,0.00018356,2]
[364573878,1749145833124,-440.0,0.00018356,2]
[364573880,1749145833135,-440.0,0.00018356,2]
[364573883,1749145833145,-541.7,0.00018356,2]
[364573884,1749145833155,-440.0,0.00018356,2]
[364573887,1749145833165,-440.0,0.00018356,2]
[364573889,1749145833176,-440.0,0.00018356,2]
[364573891,1749145833185,-440.0,0.00018356,2]
[364573893,1749145833195,-440.0,0.00018356,2]
[364573894,1749145833205,-440.0,0.00018356,2]
[364573897,1749145833214,-1279.15,0.00018356,2]
[364573899,1749145833224,-440.0,0.00018356,2]
[364573901,1749145833234,-440.0,0.00018356,2]
[364573902,1749145833244,-440.0,0.00018356,2]
[364573904,1749145833254,-440.0,0.00018356,2]
[364573906,1749145833264,-440.0,0.00018356,2]
[364573908,1749145833273,-440.0,0.00018356,2]
[364573910,1749145833287,-440.0,0.00018356,2]
[364573913,1749145833297,-440.0,0.0001863,2]
[364573914,1749145833306,-440.0,0.0001863,2]
[364573917,1749145833317,-440.0,0.0001863,2]
[364573919,1749145833327,-458.23,0.0001863,2]
[364573920,1749145833337,-506.38421765,0.0001863,2]
[364573922,1749145833346,-440.0,0.0001863,2]
[364573924,1749145833356,-430.0,0.0001863,2]
[364573926,1749145833365,-440.0,0.0001863,2]
[364573928,1749145833374,-440.0,0.0001863,2]
[364573930,1749145833384,-440.0,0.0001863,2]
[364573932,1749145833394,-440.0,0.0001863,2]
[364573935,1749145833404,-440.0,0.0001863,2]
[364573936,1749145833413,-440.0,0.0001863,2]
[364573953,1749145833423,-1279.15,0.0001863,2]
[364573955,1749145833577,-440.0,0.0001863,2]
[364573957,1749145833587,-440.0,0.0001863,2]
[364573959,1749145833598,-440.0,0.0001863,2]
[364573961,1749145833607,-440.0,0.0001863,2]
[364573963,1749145833618,-440.0,0.0001863,2]
[364573965,1749145833628,-440.0,0.0001863,2]
[364573967,1749145833637,-397.24946332,0.000189,2]
[364573969,1749145833647,-440.0,0.00018903,2]
[364573971,1749145833658,-440.0,0.00018903,2]
[364573973,1749145833668,-440.0,0.00018903,2]
[364573975,1749145833677,-440.0,0.00018903,2]
[364573977,1749145833687,-440.0,0.00018903,2]
[364573979,1749145833696,-440.0,0.00018903,2]
[364573981,1749145833706,-471.25,0.00018904,2]
[364573983,1749145833716,-440.0,0.00018904,2]
[364573985,1749145833725,-440.0,0.00018904,2]
[364573987,1749145833734,-440.0,0.00018904,2]
[364573989,1749145833744,-440.0,0.00018904,2]
[364573991,1749145833753,-440.0,0.00018904,2]
[364573993,1749145833763,-1279.15,0.00018904,2]
[364573995,1749145833773,-440.0,0.00018904,2]
[364573997,1749145833785,-440.0,0.00018904,2]
[364573999,1749145833795,-440.0,0.00018904,2]
[364574001,1749145833804,-440.0,0.00018904,2]
[364574003,1749145833814,-440.0,0.00018904,2]
[364574005,1749145833823,-440.0,0.00018904,2]
[364574007,1749145833833,-440.0,0.00019177,2]
[364574009,1749145833843,-440.0,0.00019177,2]
[364574011,1749145833853,-440.0,0.00019177,2]
[364574013,1749145833862,-440.0,0.00019177,2]
[364574015,1749145833872,-440.0,0.00019177,2]
[364574017,1749145833881,-440.0,0.00019178,2]
[364574019,1749145833891,-440.0,0.00019178,2]
[364574021,1749145833901,-449.0,0.00019178,2]
[364574023,1749145833910,-440.0,0.00019178,2]
[364574025,1749145833919,-440.0,0.00019178,2]
[364574027,1749145833929,-1279.15,0.00019178,2]
[364574029,1749145833939,-440.0,0.00019178,2]
[364574031,1749145833948,-440.0,0.00019178,2]
[364574033,1749145833957,-531.71,0.00019178,2]
[364574035,1749145833967,-440.0,0.00019178,2]
[364574037,1749145833976,-440.0,0.00019178,2]
[364574038,1749145833985,-160.0,0.00019409,2]
[364574040,1749145833994,-160.0,0.00019409,2]
[364574042,1749145834004,-81.18946461,0.00019451,2]
[364574044,1749145834014,-440.0,0.00019451,2]
[364574047,1749145834027,-440.0,0.00019451,2]
[364574048,1749145834038,-440.0,0.00019451,2]
[364574051,1749145834050,-155.0,0.00019451,2]
[364574053,1749145834060,-440.0,0.00019451,2]
[364574055,1749145834071,-413.8115949,0.00019452,2]
[364574057,1749145834081,-760.2,0.00019452,2]
[364574059,1749145834092,-440.0,0.00019452,2]
[364574061,1749145834103,-440.0,0.00019452,2]
[364574062,1749145834112,-440.0,0.00019452,2]
[364574064,1749145834121,-312.48,0.00019452,2]
[364574067,1749145834138,-315.64,0.00019452,2]
[364574068,1749145834152,-1279.15,0.00019452,2]
[364574069,1749145834162,-440.0,0.00019452,2]